fUSD/lending_fUSD_20241230
["ID","MTS","AMOUNT","RATE_DAILY","PERIOD"]
[347209905,1735576232933,-46872.01639846,0.000125,2]
[347209907,1735576232944,-12111.01998044,0.000125,2]
[347209909,1735576232955,-2952.82400479,0.000125,2]
[347209912,1735576232966,-1305.0,0.000125,2]
[347209914,1735576232977,-378.62,0.000125,2]
[347209916,1735576232989,-1510.5078918,0.000125,2]
[347209918,1735576233000,-320.25724888,0.000125,2]
[347209920,1735576233014,-1133.32393953,0.000125,2]
[347209922,1735576233025,-255.47620661,0.000125,2]
[347209924,1735576233037,-1858.07469608,0.000125,2]
[347209973,1735576237984,-367.0324585,0.000123,2]
[347209974,1735576237993,-112.79037175,0.000125,2]
[347209975,1735576238083,-2366232.88130594,0.000125,2]
[347209976,1735576238093,-6106.70761901,0.000125,2]
[347209977,1735576238102,-892450.03591898,0.000125,2]
[347209978,1735576238112,-399.999999,0.000125,2]
[347209979,1735576238121,-2894859.82872826,0.000125,2]
[347209980,1735576238132,-802.960445,0.000125,2]
[347209981,1735576238281,-5019.89940761,0.000125,2]
[347209982,1735576238315,-605.30966957,0.000125,2]
[347209983,1735576238345,-7597.21509,0.000125,2]
[347210026,1735576240712,-6559.09346043,0.000125,2]
[347210029,1735576240723,-301.16954343,0.000125,2]
[347210039,1735576240812,-643.85208021,0.000125,2]
[347210044,1735576240845,-2857.5,0.000125,2]
[347210046,1735576240859,-32893.81428125,0.000125,2]
[347210048,1735576240870,-83961.21963704,0.000125,2]
[347210055,1735576240920,-270.16312166,0.000125,2]
[347210281,1735576243019,-92269.84282953,0.000125,2]
[347210293,1735576243128,-4562.96122102,0.000125,2]
[347210296,1735576243185,-514.80002194,0.000125,2]
[347210297,1735576243197,-1172139.98792902,0.000125,2]
[347210315,1735576243383,-1605.95596,0.000125,2]
[347210359,1735576245996,-1962.0,0.000125,2]
[347210360,1735576246005,-156330.88041421,0.000125,2]
[347210361,1735576246050,-557.6099985,0.000125,2]
[347210362,1735576246178,-23.94760039,0.000125,2]
[347210390,1735576246720,-4375.8977626,0.000125,2]
[347210394,1735576246744,-11610.1778922,0.000125,2]
[347210398,1735576246781,-521.56177382,0.000125,2]
[347210401,1735576246793,-2808.60603,0.000125,2]
[347210435,1735576338930,-400.0,0.000125,4]
[347210437,1735576347242,895.22628115,0.0002,120]
[347210439,1735576674231,1500.0,0.00011004,2]
[347210440,1735576721026,1182.62,0.00010991,2]
[347210441,1735576723164,1264.16,0.00010991,2]
[347210442,1735576739351,787.26,9.084e-05,2]
[347210443,1735576770806,1421.22,0.000125,4]
[347210444,1735576795454,162.51,0.00010137,2]
[347210445,1735576945636,151.0,0.000125,4]
[347210446,1735576979534,200.0,0.000116,4]
[347210447,1735576981678,500.0,0.000117,4]
[347210448,1735576984372,800.0,0.000118,4]
[347210449,1735576986082,1100.0,0.000119,4]
[347210450,1735576988610,1400.0,0.000123,4]
[347210451,1735576990401,200.0,0.000124,4]
[347210452,1735576992564,200.0,0.000125,4]
[347210453,1735577015321,1962.58,0.0001098,2]
[347210454,1735577019491,192.25,0.00010969,2]
[347210455,1735577029995,3999.38322294,0.00010933,2]
[347210456,1735577037395,12603.09,0.0001097,2]
[347210457,1735577073362,1646.61,0.00010992,2]
[347210458,1735577101161,206.46962424,0.00010985,2]
[347210459,1735577111367,250.0,0.0001101,2]
[347210460,1735577128153,151.0,0.000125,4]
[347210461,1735577216426,151.0,0.000125,4]
[347210462,1735577219150,1000.0,0.00010953,2]
[347210467,1735577228733,-250.0,0.00011033,2]
[347210468,1735577228755,-240.81754156,0.00011085,2]
[347210469,1735577247810,1307.13,0.00010949,2]
[347210470,1735577313779,151.0,0.000125,4]
[347210471,1735577338704,169.63,0.00010992,2]
[347210472,1735577357121,-615.20245844,0.00011085,2]
[347210473,1735577357143,-17183.32,0.0001112,2]
[347210474,1735577357164,-1479.07995056,0.00011144,2]
[347210475,1735577357192,-29.75186511,0.00011244,2]
[347210476,1735577369113,-120.24813489,0.00011244,2]
[347210477,1735577369134,-150.0,0.00011244,2]
[347210478,1735577369154,-76.20825454,0.00011244,2]
[347210494,1735577432384,-73.79174546,0.00011244,2]
[347210495,1735577432394,-150.0,0.00011327,2]
[347210496,1735577432404,-787.26,0.00011348,2]
[347210497,1735577432414,-150.0,0.0001141,2]
[347210498,1735577432424,-150.0,0.00011452,2]
[347210499,1735577432433,-150.0,0.00011494,2]
[347210500,1735577432443,-150.0,0.00011507,2]
[347210501,1735577432452,-1374.12,0.00011507,2]
[347210502,1735577432462,-386.38,0.00011519,2]
[347210503,1735577432472,-386.38,0.00011522,2]
[347210504,1735577432482,-386.38,0.00011525,2]
[347210505,1735577432491,-386.38,0.00011528,2]
[347210506,1735577432502,-386.38,0.00011531,2]
[347210507,1735577432512,-386.38,0.00011534,2]
[347210508,1735577432522,-386.38,0.00011537,2]
[347210509,1735577432532,-386.38,0.0001154,2]
[347210510,1735577432542,-386.38,0.00011543,2]
[347210511,1735577432551,-386.38,0.00011546,2]
[347210512,1735577432560,-386.38,0.0001155,2]
[347210513,1735577432569,-386.38,0.00011553,2]
[347210514,1735577432578,-386.38,0.00011556,2]
[347210515,1735577432588,-150.0,0.00011556,2]
[347210516,1735577432598,-386.38,0.00011559,2]
[347210517,1735577432608,-386.38,0.00011562,2]
[347210518,1735577432618,-386.38,0.00011565,2]
[347210519,1735577432629,-386.38,0.00011568,2]
[347210520,1735577432644,-386.38,0.00011571,2]
[347210521,1735577432653,-386.38,0.00011574,2]
[347210522,1735577432663,-386.38,0.00011577,2]
[347210524,1735577432674,-150.0,0.00011577,2]
[347210526,1735577432683,-150.0,0.0001166,2]
[347210528,1735577432692,-150.0,0.0001166,2]
[347210529,1735577432702,-1911.53,0.0001166,2]
[347210530,1735577432714,-150.0,0.00011744,2]
[347210532,1735577432723,-150.0,0.00011827,2]
[347210533,1735577432732,-150.0,0.00011868,2]
[347210536,1735577432743,-150.0,0.00011868,2]
[347210538,1735577432760,-505.87,0.0001188,2]
[347210539,1735577432772,-491.17,0.0001188,2]
[347210541,1735577432783,-821.777,0.0001188,2]
[347210544,1735577432797,-166.66,0.00011881,2]
[347210546,1735577432809,-150.0,0.0001191,2]
[347210548,1735577432819,-150.0,0.00011993,2]
[347210551,1735577432829,-151.97249,0.00012,2]
[347210554,1735577432839,-2134.88221263,0.00012046,2]
[347210556,1735577432848,-150.0,0.00012077,2]
[347210559,1735577432859,-150.0,0.00012077,2]
[347210563,1735577432869,-2134.88221262,0.00012117,2]
[347210566,1735577432879,-9204.0,0.00012119,2]
[347210569,1735577432890,-200.0,0.00012146,2]
[347210572,1735577432901,-150.0,0.0001216,2]
[347210574,1735577432911,-150.0,0.00012181,2]
[347210577,1735577432921,-2134.88221262,0.00012188,2]
[347210580,1735577432931,-150.0,0.00012243,2]
[347210582,1735577432940,-196.2382989,0.0001225,2]
[347210585,1735577432950,-2134.88221262,0.00012258,2]
[347210587,1735577432961,-150.0,0.00012285,2]
[347210589,1735577432971,-173.513,0.000123,2]
[347210591,1735577432981,-2198.653,0.000123,2]
[347210593,1735577432991,-17943.12854553,0.000123,2]
[347210595,1735577433002,-6145.9234,0.000123,2]
[347210597,1735577433014,-507.87,0.00012306,2]
[347210598,1735577433025,-13632.91518108,0.00012313,2]
[347210601,1735577433035,-1000.0,0.00012322,2]
[347210603,1735577433046,-363.58,0.00012325,2]
[347210604,1735577433056,-978.41,0.00012325,2]
[347210606,1735577433067,-978.41,0.00012325,2]
[347210608,1735577433078,-978.41,0.00012325,2]
[347210610,1735577433088,-150.0,0.00012327,2]
[347210612,1735577433098,-2134.88221262,0.00012329,2]
[347210614,1735577433109,-497.11,0.00012331,2]
[347210617,1735577433120,-508.33,0.00012338,2]
[347210618,1735577433130,-497.21,0.00012344,2]
[347210619,1735577433140,-508.94,0.00012344,2]
[347210620,1735577433149,-496.85,0.00012362,2]
[347210621,1735577433158,-1264.16,0.00012365,2]
[347210622,1735577433167,-491.64,0.00012388,2]
[347210623,1735577433177,-743.5123,0.0001239,2]
[347210624,1735577433186,-12105.039,0.0001239,2]
[347210625,1735577433195,-1975.3654,0.0001239,2]
[347210626,1735577433205,-153.23119559,0.00012393,2]
[347210627,1735577433215,-153.23119559,0.00012395,2]
[347210628,1735577433225,-153.23119559,0.00012398,2]
[347210629,1735577433234,-14412.48498439,0.00012399,2]
[347210631,1735577433245,-14412.4849843,0.00012399,2]
[347210633,1735577433259,-14412.4849843,0.00012399,2]
[347210635,1735577433268,-14412.4849843,0.00012399,2]
[347210637,1735577433279,-14412.4849843,0.00012399,2]
[347210639,1735577433289,-14412.4849843,0.00012399,2]
[347210641,1735577433299,-14412.4849843,0.00012399,2]
[347210643,1735577433310,-14412.4849843,0.00012399,2]
[347210645,1735577433320,-14412.4849843,0.00012399,2]
[347210647,1735577433329,-498.16,0.000124,2]
[347210649,1735577433339,-494.62,0.000124,2]
[347210651,1735577433349,-509.19,0.000124,2]
[347210653,1735577433358,-490.02,0.000124,2]
[347210655,1735577433367,-507.57,0.000124,2]
[347210657,1735577433376,-499.92,0.000124,2]
[347210659,1735577433386,-2289.76,0.000124,2]
[347210661,1735577433395,-473.09501418,0.000124,2]
[347210663,1735577433405,-8500.0,0.000124,2]
[347210665,1735577433415,-358.87317781,0.000124,2]
[347210667,1735577433426,-2134.88221262,0.000124,2]
[347210669,1735577433435,-153.23119559,0.000124,2]
[347210671,1735577433445,-382.76169771,0.000124,2]
[347210673,1735577433455,-14412.4849843,0.000124,2]
[347210675,1735577433465,-262.03448254,0.000124,2]
[347210677,1735577433475,-150.0,0.0001241,2]
[347210679,1735577433484,-2534.0,0.00012466,2]
[347210681,1735577433493,-499.02248788,0.00012473,2]
[347210683,1735577433505,-500.0,0.00012473,2]
[347210685,1735577433515,-500.0,0.00012489,2]
[347210687,1735577433528,-500.0,0.00012489,2]
[347210689,1735577433538,-500.0,0.00012489,2]
[347210691,1735577433548,-500.0,0.00012489,2]
[347210693,1735577433558,-408.80537162,0.00012489,2]
[347210695,1735577433568,-500.0,0.00012489,2]
[347210697,1735577433578,-257.96731886,0.00012489,2]
[347210699,1735577433588,-251.86495576,0.00012489,2]
[347210701,1735577433598,-500.0,0.00012489,2]
[347210703,1735577433608,-500.0,0.00012489,2]
[347210705,1735577433619,-500.0,0.00012489,2]
[347210707,1735577433631,-500.0,0.00012489,2]
[347210709,1735577433644,-500.0,0.00012489,2]
[347210711,1735577433654,-500.0,0.00012489,2]
[347210713,1735577433664,-500.0,0.00012489,2]
[347210715,1735577433675,-500.0,0.00012489,2]
[347210717,1735577433685,-500.0,0.00012489,2]
[347210719,1735577433694,-500.0,0.00012489,2]
[347210721,1735577433704,-500.0,0.00012489,2]
[347210722,1735577433716,-500.0,0.00012489,2]
[347210724,1735577433727,-496.59,0.00012489,2]
[347210726,1735577433736,-52185.48955837,0.0001249,3]
[347210728,1735577433751,-2128.85214163,0.0001249,3]
[347210731,1735577433765,-1378.66431652,0.0001249,3]
[347210733,1735577433777,-520.41,0.0001249,3]
[347210735,1735577433789,-2525.0000005,0.0001249,3]
[347210748,1735577433916,-337329.32398298,0.0001249,3]
[347210750,1735577433927,-33151.5995851,0.00012493,2]
[347210753,1735577433938,-150.0,0.00012493,2]
[347210755,1735577433948,-150.0,0.00012493,2]
[347210757,1735577433957,-150.0,0.00012493,2]
[347210759,1735577433967,-50920.46225248,0.00012497,2]
[347210760,1735577433977,-250000.0,0.00012499,2]
[347210762,1735577433988,-919.05,0.00012499,2]
[347210764,1735577433998,-422.54,0.00012499,2]
[347210766,1735577434012,-1817.0,0.00012499,2]
[347210768,1735577434022,-9499.46444123,0.000125,2]
[347210770,1735577434032,-2693285.78145106,0.000125,2]
[347210772,1735577434042,-1354552.62182875,0.000125,2]
[347210775,1735577434054,-839.53686007,0.000125,2]
[347210777,1735577434066,-22867.74922093,0.000125,2]
[347210780,1735577434086,-2312.0,0.000125,2]
[347210799,1735577434324,-623.44006736,0.000125,2]
[347210802,1735577434342,-3009.9573749,0.000125,2]
[347211162,1735577438154,-1594.6158,0.0001239,2]
[347211164,1735577438164,-6205305.75723632,0.000125,2]
[347211204,1735577438683,-659.93001883,0.000125,2]
[347211205,1735577440220,-500.0,0.000125,2]
[347211206,1735577440387,-7056.576,0.000125,2]
[347211207,1735577440430,-301.71282251,0.000125,2]
[347211208,1735577440446,-2775.94000765,0.000125,2]
[347211209,1735577440458,-2531.21331795,0.000125,2]
[347211210,1735577440469,-366.31970635,0.000125,2]
[347211211,1735577440481,-2306.00824136,0.000125,2]
[347211212,1735577440492,-350.49825069,0.000125,2]
[347211213,1735577440544,-4635.65184,0.000125,2]
[347211217,1735577443213,-794.06830323,0.000125,2]
[347211218,1735577443223,-291.06216919,0.000125,2]
[347211219,1735577443234,-543.86952758,0.000125,2]
[347211220,1735577443243,-8.56630207,0.000125,2]
[347211222,1735577443254,-371.7000001,0.000125,2]
[347211223,1735577443271,-191985.925325,0.000125,2]
[347211224,1735577443379,-686.0,0.000125,2]
[347211225,1735577443391,-104059.99999998,0.000125,2]
[347211229,1735577446230,-260.53126813,0.000125,2]
[347211230,1735577446242,-262.05312674,0.000125,2]
[347211231,1735577446275,-944.41560513,0.000125,2]
[347211232,1735577446285,-1055.58439487,0.000125,2]
[347211233,1735577446330,-4168.68814988,0.000125,2]
[347211234,1735577446342,-79261.7926361,0.000125,2]
[347211235,1735577446386,-805.44008607,0.000125,2]
[347211236,1735577446398,-349501.672066,0.000125,2]
[347211237,1735577446409,-233794.21748589,0.000125,2]
[347211238,1735577446496,-457.00711509,0.000125,2]
[347211257,1735577561171,400.0,0.000119,4]
[347211258,1735577563366,900.0,0.00012,4]
[347211259,1735577565852,1400.0,0.000121,4]
[347211260,1735577567632,1900.0,0.000122,4]
[347211261,1735577570231,2400.0,0.000123,4]
[347211262,1735577571869,400.0,0.000124,4]
[347211264,1735577574290,400.0,0.000125,4]
[347211271,1735577678399,263.71552047,0.00012429,7]
[347211272,1735577745966,1012.45,9.509e-05,2]
[347211273,1735577768222,345.61,0.00010137,2]
[347211274,1735578010429,250.0,0.00010781,2]
[347211275,1735578344882,163.83,0.00010808,2]
[347211276,1735578351127,1000.0,0.00010808,2]
[347211277,1735578401125,-406.89043913,0.00011197,2]
[347211278,1735578408928,751.71,0.00010797,2]
[347211279,1735578443098,-417.89549226,0.00011197,2]
[347211280,1735578480116,163.75,0.00010906,2]
[347211281,1735578486864,1500.0,0.00010804,2]
[347211285,1735578550411,222.0,0.00010874,2]
[347211287,1735578563196,758.49,0.00010886,2]
[347211292,1735578616269,698.56581386,9.082e-05,2]
[347211293,1735578616294,263.25418614,9.082e-05,2]
[347211299,1735578632392,-176.52,0.00011241,2]
[347211300,1735578632402,-176.52,0.00011244,2]
[347211301,1735578632411,-176.52,0.00011247,2]
[347211302,1735578632420,-123.66,0.0001125,2]
[347211303,1735578632432,-52.86,0.0001125,2]
[347211304,1735578632442,-176.52,0.00011253,2]
[347211305,1735578632452,-115.796,0.00011256,2]
[347211306,1735578632475,-60.724,0.00011256,2]
[347211307,1735578632485,-176.52,0.00011259,2]
[347211308,1735578632495,-176.52,0.00011262,2]
[347211309,1735578632504,-176.52,0.00011265,2]
[347211310,1735578632514,-176.52,0.00011268,2]
[347211311,1735578632524,-176.52,0.00011271,2]
[347211312,1735578632533,-176.52,0.00011274,2]
[347211313,1735578632542,-176.52,0.00011277,2]
[347211314,1735578632552,-176.52,0.0001128,2]
[347211315,1735578632563,-176.52,0.00011283,2]
[347211316,1735578632573,-176.52,0.00011286,2]
[347211317,1735578632582,-176.52,0.00011289,2]
[347211318,1735578632591,-176.52,0.00011292,2]
[347211319,1735578632601,-250.0,0.00011294,2]
[347211320,1735578632610,-176.52,0.00011295,2]
[347211321,1735578632620,-2860.77646272,0.00011297,2]
[347211322,1735578632632,-5004.98659038,0.00011297,2]
[347211323,1735578632662,-3716.2469469,0.00011297,2]
[347211324,1735578632672,-176.52,0.00011298,2]
[347211325,1735578632681,-961.82,0.00011346,2]
[347211326,1735578632691,-250.0,0.0001139,2]
[347211327,1735578632700,-400.0,0.00011487,2]
[347211328,1735578632710,-500.89,0.00011498,2]
[347211329,1735578632719,-509.3,0.00011508,2]
[347211330,1735578632729,-500.69,0.00011508,2]
[347211331,1735578632739,-513.22986062,0.00011559,2]
[347211332,1735578632748,-493.72,0.00011563,2]
[347211333,1735578632757,-1155.72,0.00011563,2]
[347211334,1735578632767,-2357.93513382,0.00011659,2]
[347211335,1735578632779,-17170.5,0.00011659,2]
[347211336,1735578632791,-4371.56486618,0.00011659,2]
[347211339,1735578632803,-494.81,0.00011659,2]
[347211341,1735578632815,-157.19268081,0.00011659,2]
[347211352,1735578632935,-303.70086138,0.00011659,2]
[347211355,1735578632948,-31.28645781,0.00011659,2]
[347211357,1735578632958,-506.07,0.00011659,2]
[347211359,1735578632971,-925.21,0.00011778,2]
[347211361,1735578632984,-504.16,0.00011792,2]
[347211363,1735578632994,-495.26,0.00011792,2]
[347211365,1735578633004,-329.271199,0.00011792,2]
[347211367,1735578633017,-162.208801,0.00011792,2]
[347211369,1735578633028,-493.34,0.00011792,2]
[347211371,1735578633038,-497.59,0.00011792,2]
[347211373,1735578633048,-499.13,0.00011792,2]
[347211375,1735578633059,-150.68,0.000118,2]
[347211377,1735578633069,-802.006,0.0001188,2]
[347211379,1735578633079,-497.66,0.0001188,2]
[347211381,1735578633089,-508.15,0.0001188,2]
[347211383,1735578633099,-508.16,0.0001188,2]
[347211385,1735578633109,-490.42,0.0001188,2]
[347211387,1735578633119,-365.44,0.00011883,2]
[347211389,1735578633130,-450.0,0.00012,2]
[347211391,1735578633141,-488.69277361,0.00012133,2]
[347211393,1735578633151,-1000.0,0.00012159,2]
[347211395,1735578633161,-888.35017346,0.00012185,2]
[347211397,1735578633173,-166.94,0.00012214,2]
[347211399,1735578633183,-150.0,0.00012235,2]
[347211401,1735578633193,-150.0,0.00012243,2]
[347211403,1735578633203,-758.49,0.00012247,2]
[347211405,1735578633213,-196.238299,0.0001225,2]
[347211407,1735578633223,-150.0,0.00012257,2]
[347211409,1735578633233,-150.0,0.00012288,2]
[347211411,1735578633244,-191.41939673,0.00012293,2]
[347211413,1735578633255,-1653.0029,0.00012299,2]
[347211415,1735578633264,-1000.0,0.000123,2]
[347211417,1735578633274,-176.358,0.00012306,2]
[347211419,1735578633284,-2962.075,0.00012306,2]
[347211420,1735578633295,-150.0,0.00012309,2]
[347211421,1735578633305,-150.0,0.00012321,2]
[347211422,1735578633317,-150.0,0.00012346,2]
[347211423,1735578633327,-150.0,0.00012371,2]
[347211424,1735578633338,-1908.94243669,0.00012399,2]
[347211425,1735578633348,-1908.94243667,0.00012399,2]
[347211426,1735578633358,-1908.94243667,0.00012399,2]
[347211427,1735578633368,-1908.94243667,0.00012399,2]
[347211428,1735578633378,-1908.94243667,0.00012399,2]
[347211430,1735578633388,-1908.94243667,0.000124,2]
[347211432,1735578633398,-1908.94243667,0.000124,2]
[347211434,1735578633407,-5000.0,0.000124,2]
[347211436,1735578633417,-426.2744,0.000124,2]
[347211438,1735578633427,-845.5641,0.000124,2]
[347211440,1735578633437,-1908.94243667,0.000124,2]
[347211442,1735578633447,-1908.94243667,0.000124,2]
[347211444,1735578633456,-472.92590268,0.000124,2]
[347211446,1735578633466,-170.24671018,0.000124,2]
[347211448,1735578633475,-513.22986061,0.000124,2]
[347211450,1735578633485,-1000.0,0.000124,2]
[347211452,1735578633495,-184.66583517,0.000124,2]
[347211454,1735578633504,-1908.94243667,0.000124,2]
[347211456,1735578633514,-200.0,0.00012424,2]
[347211458,1735578633524,-150.0,0.00012427,2]
[347211460,1735578633534,-634.0,0.00012428,2]
[347211463,1735578633545,-150.866,0.00012428,2]
[347211465,1735578633554,-565.0,0.00012428,2]
[347211466,1735578633565,-1900.0,0.00012428,2]
[347211469,1735578633575,-1257.0,0.00012428,2]
[347211470,1735578633585,-919.0,0.00012428,2]
[347211472,1735578633594,-820.0,0.00012428,2]
[347211474,1735578633604,-3773.0,0.00012428,2]
[347211477,1735578633613,-536.0,0.00012428,2]
[347211479,1735578633623,-3719.0,0.00012428,2]
[347211480,1735578633633,-1102.0,0.00012428,2]
[347211483,1735578633643,-168.071,0.0001247,2]
[347211485,1735578633653,-290.845,0.0001247,2]
[347211486,1735578633662,-1172.0,0.0001247,2]
[347211489,1735578633672,-3891.0,0.0001247,2]
[347211491,1735578633682,-9605.0,0.0001247,2]
[347211493,1735578633691,-31758.57046114,0.0001247,2]
[347211504,1735578633791,-524.72012969,0.0001247,2]
[347211506,1735578633803,-1105.90986062,0.0001247,2]
[347211511,1735578633842,-9548.12198673,0.0001247,2]
[347211513,1735578633852,-500.0,0.00012473,2]
[347211515,1735578633861,-2474.07801327,0.00012496,2]
[347211612,1735578638339,-2351.63947026,0.0001237,2]
[347211613,1735578638385,-525.45,0.0001237,2]
[347211614,1735578638397,-122.91052974,0.0001237,2]
[347211615,1735578638407,-898.78947253,0.00012496,2]
[347211616,1735578638417,-500.0,0.00012499,2]
[347211617,1735578638427,-500.0,0.00012499,2]
[347211618,1735578638436,-439.82217493,0.00012499,2]
[347211619,1735578638445,-901.59,0.00012499,2]
[347211620,1735578638459,-1271.0,0.00012499,2]
[347211621,1735578638469,-490.49,0.000125,2]
[347211622,1735578638478,-1404855.60377414,0.000125,2]
[347211623,1735578638487,-6719.40006036,0.000125,2]
[347211624,1735578638496,-4744110.4899881,0.000125,2]
[347211625,1735578638523,-2455.22011206,0.000125,2]
[347211626,1735578638535,-4822.6,0.000125,2]
[347211627,1735578638546,-845.88342142,0.000125,2]
[347211628,1735578638573,-462.98700743,0.000125,2]
[347211629,1735578638611,-141506.32238228,0.000125,2]
[347211804,1735578640355,-350.20197953,0.000125,2]
[347211814,1735578640469,-1919.57696179,0.000125,2]
[347211816,1735578640480,-334.28000001,0.000125,2]
[347211822,1735578640527,-1012.35,0.000125,2]
[347212111,1735578643520,-503.62,0.0001237,2]
[347212112,1735578643530,-666.38,0.00012499,2]
[347212113,1735578643570,-478.62,0.00012499,2]
[347212114,1735578643580,-4128.33,0.000125,2]
[347212115,1735578643655,-1395.71527919,0.000125,2]
[347212125,1735578646430,-7079.03148328,0.000125,2]
[347212126,1735578646478,-4185.181,0.000125,2]
[347212127,1735578647405,-468.88906519,0.000125,2]
[347212128,1735578647416,-385.032,0.000125,2]
[347212129,1735578647542,-0.18560546,0.000125,2]
[347212130,1735578647554,-1841.385222,0.000125,2]
[347212131,1735578647565,-7901.03128946,0.000125,2]
[347212132,1735578647578,-6991.20000002,0.000125,2]
[347212133,1735578671097,151.0,0.000125,4]
[347212135,1735578917835,158.4,0.00010137,2]
[347212137,1735578926014,151.0,0.000125,4]
[347212138,1735578963593,500.0,0.000117,4]
[347212139,1735578965780,1000.0,0.000118,4]
[347212140,1735578968421,1600.0,0.000119,4]
[347212141,1735578970232,1709.06447953,0.000122,4]
[347212142,1735579006504,-2159.0086,0.00011196,2]
[347212143,1735579006526,-250.0,0.00011232,2]
[347212144,1735579006548,-628.61,0.000114,2]
[347212145,1735579006569,-723.32,0.00011402,2]
[347212146,1735579006591,-1513.75403795,0.00011402,2]
[347212147,1735579006613,-628.61,0.00011403,2]
[347212148,1735579006635,-628.61,0.00011406,2]
[347212149,1735579006657,-628.61,0.00011409,2]
[347212150,1735579006679,-628.61,0.00011412,2]
[347212151,1735579006700,-628.61,0.00011415,2]
[347212152,1735579006722,-628.61,0.00011418,2]
[347212153,1735579006743,-628.61,0.00011421,2]
[347212154,1735579006765,-300.0,0.00011423,2]
[347212155,1735579006787,-628.61,0.00011424,2]
[347212156,1735579006810,-628.61,0.00011427,2]
[347212157,1735579006832,-628.61,0.0001143,2]
[347212158,1735579006853,-628.61,0.00011433,2]
[347212159,1735579006882,-628.61,0.00011436,2]
[347212160,1735579006904,-628.61,0.00011439,2]
[347212161,1735579006926,-628.61,0.00011442,2]
[347212162,1735579006948,-628.61,0.00011445,2]
[347212163,1735579006969,-628.61,0.00011448,2]
[347212164,1735579006990,-628.61,0.00011452,2]
[347212165,1735579007011,-628.61,0.00011455,2]
[347212166,1735579007372,-628.61,0.00011458,2]
[347212167,1735579008514,1399.25673392,0.00011132,2]
[347212168,1735579037021,400.0,0.00011353,2]
[347212169,1735579074245,23900.0,0.00011342,2]
[347212170,1735579108938,196.49,0.00011332,2]
[347212171,1735579113691,2087.17,0.00011332,2]
[347212172,1735579134144,738.75,0.00011328,2]
[347212173,1735579136048,200.0,0.00011328,2]
[347212175,1735579146305,-250.0,0.00011747,2]
[347212176,1735579146335,-497.94,0.00011752,2]
[347212177,1735579146363,-507.53,0.00011755,2]
[347212178,1735579146392,-492.41,0.00011759,2]
[347212179,1735579146421,-499.92,0.00011765,2]
[347212180,1735579146449,-508.41,0.00011774,2]
[347212181,1735579146475,-258.72643112,0.000118,2]
[347212182,1735579146505,-491.91,0.00011814,2]
[347212183,1735579146532,-496.52,0.00011814,2]
[347212184,1735579146561,-502.98,0.00011848,2]
[347212185,1735579146590,-783.227,0.0001188,2]
[347212186,1735579146617,-978.41,0.000119,2]
[347212188,1735579176130,250.0,0.00011329,2]
[347212189,1735579192000,527.16,0.00011328,2]
[347212190,1735579194576,594.1,0.00011328,2]
[347212191,1735579310305,167.82,0.00011321,2]
[347212192,1735579367825,1000.0,0.0001132,2]
[347212193,1735579404646,1423.5651884,0.00011891,2]
[347212194,1735579460316,1279.51,0.00011315,2]
[347212195,1735579480169,1210.03,0.0001131,2]